bitfinex/quotes_ETHUSD_20230403
["timestamp","ask_amount","ask_price","bid_price","bid_amount"]
[1680545658869,6.82480269,1800.1,1799.7,0.006]
[1680545658870,6.855,1799.8,1799.7,0.006]
[1680545659054,0.96980269,1799.6,1799.5,0.1]
[1680545659256,1.06678296,1799.6,1799.5,0.1]
[1680545659881,0.96980269,1799.6,1799.5,0.1]
[1680545660087,0.96980269,1799.6,1799.5,0.97044539]
[1680545660317,0.96980269,1799.6,1799.5,0.1]
[1680545660478,0.96980269,1799.6,1799.5,0.97044539]
[1680545660680,0.96980269,1799.6,1799.5,3.73646757]
[1680545661298,0.96980269,1799.6,1799.5,0.97044539]
[1680545661501,0.96980269,1799.6,1799.5,0.1]
[1680545661803,1.06678296,1799.6,1799.5,0.1]
[1680545661962,0.96980269,1799.6,1799.5,0.1]
[1680545668107,1.24763269,1799.6,1799.5,0.1]
[1680545668505,1.80330269,1799.6,1799.5,0.1]
[1680545668905,8.89130269,1799.6,1799.5,0.1]
[1680545669215,8.89330269,1799.6,1799.5,0.1]
[1680545669419,9.89436796,1799.6,1799.5,0.1]
[1680545672255,9.33869796,1799.6,1799.5,0.1]
[1680545673752,3.20586796,1799.6,1799.5,0.1]
[1680545673942,0.96980269,1799.6,1799.5,0.1]
[1680545677015,0.96980269,1799.6,1799.5,0.40055158]
[1680545677261,0.96980269,1799.6,1799.5,0.12270158]
[1680545677857,0.96980269,1799.6,1799.5,0.40055158]
[1680545678069,0.96980269,1799.6,1799.5,3.46883102]
[1680545678214,0.96980269,1799.6,1799.5,4.0399374]
[1680545678644,0.96980269,1799.6,1799.5,0.1]
[1680545682837,0.96980269,1799.6,1799.5,0.37785]
[1680545683037,0.96980269,1799.6,1799.5,0.95795726]
[1680545683248,0.96980269,1799.6,1799.5,0.77010726]
[1680545685523,0.96980269,1799.6,1799.5,0.19]
[1680545686765,0.96980269,1799.6,1799.5,0.77010726]
[1680545687553,0.96980269,1799.6,1799.5,3.90030499]
[1680545687767,0.96980269,1799.6,1799.5,3.62245499]
[1680545689352,0.96980269,1799.6,1799.5,0.68010726]
[1680545689553,0.96980269,1799.6,1799.5,0.1]
[1680545700964,0.96980269,1799.6,1799.5,0.68010726]
[1680545701573,0.96980269,1799.6,1799.5,1.55055265]
[1680545702810,0.96980269,1799.6,1799.5,0.68010726]
[1680545703010,0.96980269,1799.6,1799.5,4.59820362]
[1680545703325,0.96980269,1799.6,1799.5,4.02409636]
[1680545703478,0.96980269,1799.6,1799.5,4.30194636]
[1680545703673,0.96980269,1799.6,1799.5,4.29594636]
[1680545703889,0.96980269,1799.6,1799.5,4.01809636]
[1680545704925,0.96980269,1799.8,1799.5,11.00193621]
[1680545705221,0.96980269,1799.8,1799.7,1.14841496]
[1680545705427,5.4212,1800.1,1799.7,3.91443714]
[1680545705619,0.96980269,1800.0,1799.8,0.8581184]
[1680545706320,0.96980269,1800.0,1799.8,1.4137284]
[1680545706522,0.96980269,1800.0,1799.8,0.8581184]
[1680545707102,5.4212,1800.1,1799.8,1.72871336]
[1680545707318,0.002,1800.1,1799.9,0.5803184]
[1680545707625,0.97780269,1800.2,1799.9,0.27778]
[1680545707826,0.96980269,1800.2,1799.9,0.83336]
[1680545708027,0.96980269,1800.2,1799.9,4.17970058]
[1680545708327,0.96980269,1800.2,1800.1,0.27776]
[1680545709091,0.96980269,1800.2,1800.0,1.5036184]
[1680545709427,0.96980269,1800.2,1800.0,0.9233]
[1680545710012,0.96888527,1800.2,1800.0,1.35106406]
[1680545710215,0.96688527,1800.2,1800.0,0.79552406]
[1680545712195,0.96688527,1800.2,1800.0,0.09]
[1680545712400,0.96688527,1799.9,1799.8,0.006]
[1680545712608,0.96688527,1799.9,1799.7,1.14853793]
[1680545712948,0.96688527,1799.9,1799.7,3.33424171]
[1680545713344,1.24467527,1799.9,1799.7,0.56821953]
[1680545713645,0.96688527,1799.9,1799.7,0.56221953]
[1680545713846,0.96688527,1799.9,1799.6,0.5803184]
[1680545714043,1.24467527,1799.9,1799.6,3.35034058]
[1680545714243,0.96688527,1799.9,1799.6,3.35234058]
[1680545715659,0.96688527,1799.9,1799.6,3.8952145]
[1680545715861,1.0635738,1799.9,1799.6,0.54887392]
[1680545716027,0.96688527,1799.7,1799.6,3.54287392]
[1680545716354,0.96688527,1799.7,1799.6,0.006]
[1680545716658,0.002,1800.0,1799.6,11.84125742]
[1680545716830,0.96688527,1800.2,1799.8,0.57912731]
[1680545717040,0.96688527,1800.0,1799.8,0.57912731]
[1680545717233,0.96688527,1800.0,1799.8,0.2778]
[1680545717534,0.96688527,1800.0,1799.8,0.83341]
[1680545718817,0.96688527,1800.0,1799.8,1.41253731]
[1680545719057,0.96688527,1800.0,1799.8,0.83341]
[1680545719228,0.96688527,1800.0,1799.8,1.41253731]
[1680545720049,1.0635738,1800.0,1799.8,0.2778]
[1680545720352,0.96688527,1799.8,1799.7,0.008]
[1680545720524,0.96688527,1799.8,1799.5,3.96296731]
[1680545720728,0.96688527,1799.8,1799.5,6.72898949]
[1680545720926,0.96688527,1799.8,1799.5,6.73098949]
[1680545721125,0.96688527,1799.6,1799.5,3.45314949]
[1680545721325,0.96688527,1799.6,1799.5,3.45114949]
[1680545722026,0.96688527,1799.6,1799.5,3.72899949]
[1680545722376,0.96688527,1799.6,1799.5,0.68512731]
[1680545722540,0.96688527,1799.6,1799.5,0.67912731]
[1680545723177,0.96688527,1799.6,1799.5,0.68512731]
[1680545723381,0.96688527,1799.6,1799.5,0.95697731]
[1680545723528,0.96688527,1799.6,1799.5,0.96297731]
[1680545723879,0.96688527,1799.6,1799.5,0.68512731]
[1680545724474,0.96688527,1799.6,1799.5,0.67912731]
[1680545724659,0.96688527,1799.6,1799.5,0.68512731]
[1680545724974,0.96688527,1799.6,1799.5,0.96297731]
[1680545725855,0.96688527,1799.6,1799.5,0.68512731]
[1680545726502,0.96688527,1799.6,1799.5,0.96297731]
[1680545726640,0.96688527,1799.6,1799.5,0.68512731]
[1680545727494,0.96688527,1799.6,1799.5,0.96297731]
[1680545728158,0.96688527,1799.6,1799.5,0.68512731]
[1680545728660,0.96688527,1799.6,1799.5,0.96297731]
[1680545729490,0.96688527,1799.6,1799.5,0.68512731]
[1680545730699,0.96688527,1799.6,1799.5,0.67912731]
[1680545730851,0.96688527,1799.6,1799.5,0.1]
[1680545732075,1.0695738,1799.6,1799.4,1.77912731]
[1680545732275,1.0695738,1799.6,1799.4,0.57912731]
[1680545732276,1.0635738,1799.6,1799.4,0.57912731]
[1680545733291,1.0635738,1799.6,1799.5,0.33492481]
[1680545734047,1.0635738,1799.6,1799.3,0.1]
[1680545734048,2.3025738,1799.6,1799.3,0.1]
[1680545734268,0.96688527,1799.4,1799.3,0.1]
[1680545734803,1.24475527,1799.4,1799.3,0.1]
[1680545735170,0.97288527,1799.4,1799.3,0.42185824]
[1680545735778,0.10468853,1799.6,1799.3,1.25550824]
[1680545735994,0.10468853,1799.6,1799.3,1.83463555]
[1680545735995,0.96688527,1799.6,1799.3,1.83463555]
[1680545736196,0.97288527,1799.6,1799.4,0.57912731]
[1680545736503,0.97288527,1799.6,1799.5,0.27785]
[1680545737004,0.96688527,1799.6,1799.5,0.27785]
[1680545737306,0.96688527,1799.6,1799.5,0.83355]
[1680545737799,0.96688527,1799.6,1799.5,1.41267731]
[1680545738423,0.96688527,1799.6,1799.5,0.83355]
[1680545738596,0.96688527,1799.6,1799.5,0.27785]
[1680545738958,0.96688527,1799.6,1799.5,0.59898919]
[1680545739403,0.96688527,1799.6,1799.5,1.15468919]
[1680545740203,0.96688527,1799.6,1799.5,1.7338165]
[1680545740413,0.96688527,1799.6,1799.5,2.10521125]
[1680545740760,0.006,1799.7,1799.5,4.87123343]
[1680545740967,0.96688527,1799.9,1799.6,2.76602218]
[1680545741199,0.97288527,1799.9,1799.6,3.59951218]
[1680545741395,0.97288527,1799.9,1799.6,3.04384218]
[1680545741606,0.97288527,1799.9,1799.6,2.76602218]
[1680545741774,0.97288527,1799.9,1799.6,3.04385218]
[1680545742672,0.97288527,1799.9,1799.5,1.55151125]
[1680545742891,0.006,1799.9,1799.5,3.36501137]
[1680545743205,0.27778,1800.0,1799.5,3.94413868]
[1680545743206,0.28378,1800.0,1799.5,3.94413868]
[1680545743409,0.96688527,1799.8,1799.5,3.94413868]
[1680545745677,0.96688527,1799.8,1799.5,1.1781165]
[1680545745905,0.96688527,1799.8,1799.5,0.9002665]
[1680545746113,0.96688527,1799.8,1799.5,1.1781165]
[1680545746336,0.96688527,1799.8,1799.5,0.9002665]
[1680545746485,0.96688527,1799.6,1799.5,0.32113919]
[1680545746928,1.24471527,1799.6,1799.5,0.32113919]
[1680545747285,1.239,1799.7,1799.3,0.67912731]
[1680545747286,1.51683,1799.7,1799.3,0.67912731]
[1680545747481,0.96688527,1799.4,1799.3,0.67912731]
[1680545749324,0.96688527,1799.4,1799.3,0.95700731]
[1680545749679,0.97288527,1799.6,1799.3,4.59172045]
[1680545749884,0.97288527,1799.6,1799.4,0.57912731]
[1680545750084,0.97288527,1799.6,1799.5,0.83355]
[1680545750691,0.96688527,1799.6,1799.5,0.83355]
[1680545750896,0.96688527,1799.6,1799.5,1.41267731]
[1680545751503,0.97288527,1799.8,1799.5,4.51797832]
[1680545751835,0.96688527,1799.8,1799.6,0.57912731]
[1680545751983,0.96688527,1799.8,1799.7,0.83346]
[1680545754085,0.96688527,1799.8,1799.7,1.13617899]
[1680545754532,0.96688527,1799.8,1799.7,0.30271899]
[1680545754754,1.0641738,1799.8,1799.7,0.30271899]
[1680545755201,0.96688527,1799.6,1799.4,6.25201827]
[1680545755544,0.96446369,1799.6,1799.5,0.57912731]
[1680545756091,0.96446369,1799.6,1799.4,0.57912731]
[1680545756399,0.96446369,1799.6,1799.4,1.44781827]
[1680545757121,0.96446369,1799.6,1799.4,0.57912731]
[1680545757487,0.96446369,1799.6,1799.5,0.57912731]
[1680545757690,1.06091006,1799.6,1799.5,0.57912731]
[1680545759846,0.96446369,1799.4,1799.3,0.67912731]
[1680545762095,0.96446369,1799.4,1799.3,0.96869096]
[1680545762505,0.96446369,1799.4,1799.3,0.68052435]
[1680545764596,2.12618006,1799.4,1799.3,0.1]
[1680545764796,1.29057006,1799.4,1799.3,0.1]
[1680545765240,1.29057006,1799.4,1799.3,0.3875721]
[1680545765451,1.56844006,1799.4,1799.3,0.3875721]
[1680545765651,2.80144006,1799.4,1799.3,0.3875721]
[1680545765867,3.35718006,1799.4,1799.3,0.3875721]
[1680545768245,11.55966006,1799.4,1799.3,0.3875721]
[1680545768464,9.45018006,1799.4,1799.3,0.3875721]
[1680545768680,8.38657006,1799.4,1799.3,0.3875721]
[1680545768883,8.66444006,1799.4,1799.3,0.3875721]
[1680545769097,8.66444006,1799.4,1799.3,0.1]
[1680545769098,2.80944006,1799.4,1799.3,0.1]
[1680545769243,3.36318006,1799.4,1799.3,0.1]
[1680545769847,1.29057006,1799.4,1799.3,0.1]
[1680545770080,0.96446369,1799.4,1799.3,0.1]
[1680545771158,0.96446369,1799.4,1799.3,0.38833718]
[1680545775289,3.03107369,1799.4,1799.3,0.38833718]
[1680545775763,0.96446369,1799.4,1799.3,0.38833718]
[1680545776110,0.96446369,1799.4,1799.3,0.66621718]
[1680545776346,0.97046369,1799.6,1799.3,0.38833718]
[1680545776547,0.37490637,1799.5,1799.3,0.38833718]
[1680545776747,0.96446369,1799.4,1799.3,0.38833718]
[1680545778611,0.96446369,1799.4,1799.3,0.28833718]
[1680545778795,0.96446369,1799.4,1799.0,4.71051017]
[1680545778991,0.96446369,1799.4,1799.0,0.86965768]
[1680545779198,0.96446369,1799.4,1799.3,0.24295634]
[1680545779431,1.08929606,1799.4,1799.3,0.24295634]
[1680545779628,1.09529606,1799.4,1799.3,0.24295634]
[1680545779837,1.08929606,1799.4,1799.3,0.24295634]
[1680545780147,0.96446369,1799.4,1799.2,0.27789]
[1680545780939,0.96446369,1799.4,1799.1,0.2779]
[1680545781831,0.96446369,1799.4,1799.0,3.89436556]
[1680545781991,0.96446369,1799.4,1799.0,6.93631774]
[1680545782197,0.96446369,1799.4,1799.0,6.93831774]
[1680545783345,0.96446369,1799.4,1799.0,8.35957204]
[1680545783513,0.96446369,1799.4,1799.0,7.50307416]
[1680545784051,0.96446369,1799.4,1799.0,7.78100416]
[1680545784262,0.006,1799.5,1799.4,5.855]
[1680545784474,0.006,1799.9,1799.4,14.55865206]
[1680545784754,0.006,1799.9,1799.6,7.79984]
[1680545784917,0.006,1800.0,1799.8,1.94464]
[1680545785118,0.006,1800.0,1799.8,4.71066218]
[1680545785520,0.006,1800.0,1799.9,3.59939218]
[1680545785841,0.97046369,1800.1,1799.9,3.59939218]
[1680545787255,0.97046369,1800.1,1800.0,0.52949297]
[1680545787502,0.97046369,1800.1,1800.0,1.08504297]
[1680545788013,0.006,1800.1,1800.0,1.08504297]
[1680545788281,0.97046369,1800.2,1800.0,0.25172297]
[1680545788491,0.09704637,1800.1,1800.0,0.25172297]
[1680545788973,0.10304637,1800.1,1800.0,0.25172297]
[1680545789116,0.10304637,1800.1,1799.6,3.88130672]
[1680545789467,0.96446369,1799.9,1799.7,2.76602218]
[1680545790410,0.96446369,1799.9,1799.6,3.60348672]
[1680545790716,0.09704637,1799.9,1799.6,2.76602218]
[1680545790948,0.28379,1800.0,1799.5,0.5807864]
[1680545790949,0.96446369,1799.8,1799.5,0.5807864]
[1680545791264,0.96446369,1799.8,1799.5,0.5787864]
[1680545791469,0.97046369,1799.8,1799.4,0.002]
[1680545791630,0.96446369,1799.5,1799.3,0.002]
[1680545791831,0.96446369,1799.5,1799.1,1.43764524]
[1680545791832,0.96446369,1799.2,1799.1,0.5787864]
[1680545792179,0.96446369,1799.2,1798.9,1.44780628]
[1680545792469,0.96446369,1799.2,1799.0,0.5787864]
[1680545793630,0.96446369,1799.2,1799.0,0.8567164]
[1680545794138,0.006,1799.4,1799.1,2.76602218]
[1680545794336,0.006,1799.4,1799.2,0.8337]
[1680545794677,0.006,1799.4,1799.2,2.76602218]
[1680545794814,0.006,1799.5,1799.2,2.76602218]
[1680545795016,0.006,1799.5,1799.1,0.5807864]
[1680545795017,0.96446369,1799.4,1799.1,0.5807864]
[1680545795252,1.08929506,1799.4,1799.1,6.34480858]
[1680545795464,1.09529506,1799.4,1799.1,6.34680858]
[1680545795647,1.09529506,1799.4,1799.1,6.62471858]
[1680545795858,1.09529506,1799.4,1799.1,6.34680858]
[1680545796223,1.09529506,1799.4,1799.1,6.62471858]
[1680545797374,0.10952951,1799.3,1799.1,3.8586964]
[1680545797681,0.10952951,1799.3,1799.1,0.8566964]
[1680545798172,0.10952951,1799.3,1799.1,0.5787864]
[1680545798367,0.10952951,1799.3,1799.1,0.8566964]
[1680545799319,0.10736698,1799.3,1799.1,1.72571628]
[1680545799668,0.96446369,1799.2,1799.1,0.5787864]
[1680545799873,0.96446369,1799.1,1799.0,0.5787864]
[1680545800065,0.96446369,1799.1,1799.0,3.62272858]
[1680545800248,0.96446369,1799.1,1799.0,3.34480858]
[1680545800967,0.96446369,1799.2,1799.0,3.62273858]
[1680545801275,0.96446369,1799.2,1799.0,3.04395218]
[1680545801766,0.96446369,1799.0,1798.9,0.5827864]
[1680545801970,0.96446369,1799.0,1798.8,0.751101]
[1680545802267,0.96446369,1799.0,1798.8,0.6787864]
[1680545807675,0.96846369,1799.0,1798.8,0.1787864]
[1680545807840,1.06131006,1799.0,1798.8,0.1787864]
[1680545808954,1.06131006,1799.0,1798.8,0.1287864]
[1680545810429,0.96446369,1798.8,1798.7,0.1]
[1680545810702,8.87934369,1798.8,1798.7,0.1]
[1680545810903,8.88734369,1798.8,1798.7,0.1]
[1680545811108,9.86607706,1798.8,1798.7,0.1]
[1680545811464,9.58811706,1798.8,1798.7,0.1]
[1680545811854,0.97246369,1798.8,1798.7,0.1]
[1680545812063,0.97046369,1798.8,1798.7,0.1]
[1680545812772,0.96446369,1798.8,1798.7,0.1]
[1680545816248,1.24242369,1798.8,1798.7,0.1]
[1680545816542,0.96446369,1798.8,1798.7,0.1]
[1680545816743,1.85419506,1798.8,1798.7,0.1]
[1680545816944,2.13215506,1798.8,1798.7,0.1]
[1680545817149,1.85419506,1798.8,1798.7,0.1]
[1680545817312,1.24242369,1798.8,1798.7,0.1]
[1680545817669,0.96446369,1798.8,1798.7,0.1]
[1680545818007,1.24242369,1798.8,1798.7,0.1]
[1680545818406,11.70396369,1798.8,1798.7,0.1]
[1680545818624,14.22287506,1798.8,1798.7,0.1]
[1680545818796,14.50683506,1798.8,1798.7,0.1]
[1680545819138,14.22887506,1798.8,1798.7,0.1]
[1680545820095,14.50683506,1798.8,1798.7,0.1]
[1680545820729,14.22887506,1798.8,1798.7,0.1]
[1680545820928,14.50683506,1798.8,1798.7,0.1]
[1680545821133,14.22887506,1798.8,1798.7,0.1]
[1680545821298,14.50683506,1798.8,1798.7,0.1]
[1680545821519,14.22887506,1798.8,1798.7,0.1]
[1680545822257,14.22887506,1798.8,1798.7,0.37797]
[1680545822431,3.48937506,1798.8,1798.7,0.1]
[1680545822625,0.96446369,1798.8,1798.7,0.1]
[1680545824034,0.96446369,1798.8,1798.7,0.37797]
[1680545825638,0.96446369,1798.8,1798.7,0.1]
[1680545826940,0.96446369,1798.8,1798.7,0.37797]
[1680545827684,0.006,1799.1,1798.7,0.37797]
[1680545827820,0.96446369,1799.0,1798.7,1.037315]
[1680545828247,0.96446369,1799.0,1798.7,3.80333718]
[1680545828846,0.96446369,1799.0,1798.8,3.0]
[1680545829050,0.96446369,1799.0,1798.8,3.27795]
[1680545829261,0.96446369,1799.0,1798.8,3.95908172]
[1680545829826,0.96446369,1799.0,1798.7,0.108]
[1680545830149,0.96446369,1798.8,1798.7,0.1]
[1680545830367,1.24242369,1798.8,1798.7,0.1]
[1680545830567,1.79834369,1798.8,1798.7,0.1]
[1680545830877,1.54585806,1798.8,1798.7,0.1]
[1680545831169,19.36207806,1798.8,1798.7,0.1]
[1680545831353,19.36407806,1798.8,1798.7,0.1]
[1680545831736,19.36807806,1798.8,1798.7,0.1]
[1680545832068,19.37007806,1798.8,1798.7,0.1]
[1680545832430,19.36082318,1798.8,1798.7,0.1]
[1680545833256,12.67194318,1798.8,1798.7,0.1]
[1680545834882,12.94990318,1798.8,1798.7,0.1]
[1680545835400,18.80490318,1798.8,1798.7,0.1]
[1680545835753,12.67194318,1798.8,1798.7,0.1]
[1680545836403,12.94990318,1798.8,1798.7,0.1]
[1680545837376,12.67194318,1798.8,1798.7,0.1]
[1680545837576,12.36850881,1798.8,1798.7,0.1]
[1680545837975,12.64646881,1798.8,1798.7,0.1]
[1680545838706,13.20238881,1798.8,1798.7,0.1]
[1680545840870,12.64646881,1798.8,1798.7,0.1]
[1680545841609,12.36850881,1798.8,1798.7,0.1]
[1680545841941,14.94195469,1798.8,1798.7,0.1]
[1680545843018,15.21991469,1798.8,1798.7,0.1]
[1680545843375,14.94195469,1798.8,1798.7,0.1]
[1680545844272,12.36850881,1798.8,1798.7,0.1]
[1680545844817,12.64646881,1798.8,1798.7,0.1]
[1680545845271,13.20238881,1798.8,1798.7,0.1]
[1680545845594,12.64646881,1798.8,1798.7,0.1]
[1680545846002,13.20238881,1798.8,1798.7,0.1]
[1680545846197,15.06783769,1798.8,1798.7,0.1]
[1680545846977,14.51191769,1798.8,1798.7,0.1]
[1680545847173,15.06783769,1798.8,1798.7,0.1]
[1680545847412,14.51191769,1798.8,1798.7,0.1]
[1680545847723,0.96320881,1798.8,1798.7,0.1]
[1680545847885,0.96120881,1798.8,1798.7,0.1]
[1680545849676,17.2812,1799.1,1798.7,0.1]
[1680545849882,0.96120881,1799.0,1798.7,0.1]
[1680545850090,0.96120881,1799.0,1798.7,0.37797]
[1680545850329,0.96120881,1799.0,1798.7,1.06304258]
[1680545850622,0.96120881,1799.0,1798.7,4.06904258]
[1680545850796,0.96120881,1799.0,1798.7,4.93806246]
[1680545851324,0.96120881,1799.0,1798.8,0.57879598]
[1680545851620,0.96120881,1799.0,1798.8,0.58479598]
[1680545851920,0.96120881,1799.0,1798.8,0.86275598]
[1680545852123,11.3952,1799.1,1798.8,1.35676123]
[1680545852280,0.96120881,1799.0,1798.8,1.91268123]
[1680545852477,0.96120881,1799.0,1798.8,4.91268123]
[1680545852809,0.96120881,1799.0,1798.8,5.78170111]
[1680545853005,0.96120881,1799.0,1798.9,0.57879598]
[1680545853207,0.96120881,1799.0,1798.9,0.86273598]
[1680545853426,0.96120881,1799.0,1798.9,0.28394]
[1680545853621,6.76830881,1799.2,1798.9,1.44110409]
[1680545853822,0.96320881,1799.2,1798.9,2.01970323]
[1680545853979,0.96120881,1799.2,1798.9,2.01970323]
[1680545854181,0.002,1799.4,1799.0,2.76602218]
[1680545854519,0.96120881,1799.5,1799.1,0.27791]
[1680545854723,0.95861412,1799.5,1799.1,1.51647283]
[1680545854908,0.96061412,1799.6,1799.2,2.76602218]
[1680545855094,0.95861412,1799.6,1799.3,0.27788]
[1680545855310,0.95861412,1799.6,1799.3,3.04390218]
[1680545855507,0.95861412,1799.6,1799.3,3.04590218]
[1680545855833,0.95861412,1799.6,1799.4,0.58245022]
[1680545856136,0.95861412,1799.6,1799.4,0.31059022]
[1680545858338,0.95861412,1799.6,1799.4,0.006]
[1680545858539,0.95861412,1799.6,1799.3,2.77202218]
[1680545859945,0.95861412,1799.6,1799.3,3.04990218]
[1680545860313,0.95861412,1799.6,1799.3,0.28388]
[1680545860519,0.95861412,1799.6,1799.3,0.006]
[1680545860919,0.95861412,1799.6,1799.3,0.28388]
[1680545861219,0.95861412,1799.6,1799.3,0.37011754]
[1680545861744,0.95861412,1799.6,1799.3,0.09223754]
[1680545861943,0.95861412,1799.6,1799.3,0.37011754]
[1680545862302,0.95861412,1799.6,1799.5,0.83355]
[1680545862504,0.95861412,1799.6,1799.5,3.59957218]
[1680545862738,0.11000001,1799.9,1799.5,4.6754294]
[1680545862739,1.06861413,1799.9,1799.5,4.6754294]
[1680545863120,0.11000001,1799.9,1799.6,9.84902218]
[1680545863319,0.11000001,1799.9,1799.8,7.79964]
[1680545863550,0.11000001,1799.9,1799.8,10.60904806]
[1680545863755,0.11000001,1799.9,1799.8,14.31433609]
[1680545865255,0.11000001,1799.9,1799.8,14.33703388]
[1680545865816,0.11000001,1799.9,1799.8,14.825648]
[1680545866163,1.06861413,1799.9,1799.8,0.008]
[1680545866357,0.38779001,1799.9,1799.5,0.006]
[1680545866547,0.95861412,1799.7,1799.5,0.006]
[1680545866932,0.95861412,1799.7,1799.4,0.006]
[1680545867123,0.95861412,1799.7,1799.4,5.861]
[1680545867321,0.95861412,1799.7,1799.4,5.863]
[1680545868061,0.95861412,1799.7,1799.4,0.008]
[1680545868236,0.95861412,1799.7,1799.4,8.861]
[1680545868557,0.95861412,1799.7,1799.4,8.863]
[1680545869747,0.95861412,1799.7,1799.4,8.88570284]
[1680545869959,0.95861412,1799.7,1799.5,2.76602218]
[1680545870264,0.95861412,1799.7,1799.5,2.77202218]
[1680545871908,1.88793553,1799.7,1799.5,0.006]
[1680545872067,0.92932141,1799.7,1799.3,0.006]
[1680545872274,0.95861412,1799.5,1799.3,0.006]
[1680545872675,1.23646412,1799.5,1799.3,0.006]
[1680545872917,0.95861412,1799.5,1799.3,0.006]
[1680545873700,1.23646412,1799.5,1799.3,0.006]
[1680545874286,0.95861412,1799.5,1799.3,0.006]
[1680545875105,2.42171953,1799.5,1799.3,0.006]
[1680545875635,2.97741953,1799.5,1799.3,0.006]
[1680545875793,0.95861412,1799.3,1799.2,0.006]
[1680545875987,0.95861412,1799.1,1798.9,0.006]
[1680545876190,1.23653412,1799.1,1798.9,0.006]
[1680545876405,1.23653412,1799.1,1798.8,0.006]
[1680545876406,0.95861412,1799.1,1798.8,0.006]
[1680545876635,1.23654412,1799.1,1798.8,0.006]
[1680545877191,0.95861412,1799.1,1798.8,0.006]
[1680545877623,1.23653412,1799.1,1798.8,0.006]
[1680545877875,0.95861412,1799.1,1798.8,2.77202218]
[1680545878036,0.95861412,1799.1,1798.8,2.7947326]
[1680545878392,0.95861412,1799.1,1798.9,2.76602218]
[1680545878591,0.95861412,1799.1,1799.0,0.27793]
[1680545878832,0.002,1799.2,1799.0,0.83979]
[1680545878989,6.37221412,1799.3,1799.0,3.28393]
[1680545879615,0.96061412,1799.3,1799.0,3.28393]
[1680545879814,0.95861412,1799.3,1799.0,3.28393]
[1680545880456,0.95861412,1799.3,1799.0,0.006]
[1680545880457,0.95861412,1799.1,1799.0,0.006]
[1680545880601,1.23652412,1799.1,1799.0,0.006]
[1680545880802,0.95861412,1799.1,1799.0,0.006]
[1680545881343,1.26382141,1799.3,1798.8,0.006]
[1680545881344,0.95861412,1798.9,1798.8,0.006]
[1680545881552,0.95861412,1798.9,1798.8,2.77202218]
[1680545881695,5.8658,1799.2,1798.8,2.77202218]
[1680545881696,0.95861412,1799.1,1798.8,2.77202218]
[1680545881902,0.95861412,1799.1,1798.8,0.006]
[1680545882317,0.95861412,1798.9,1798.8,0.006]
[1680545882649,0.95861412,1799.0,1798.8,0.006]
[1680545883756,0.95861412,1799.0,1798.8,0.28396]
[1680545883937,6.82641412,1799.2,1798.8,3.04998218]
[1680545884110,6.82641412,1799.2,1798.9,3.0]
[1680545884311,6.82641412,1799.2,1798.9,6.04995218]
[1680545884506,6.82641412,1799.2,1798.9,6.05195218]
[1680545884823,0.96061412,1799.2,1798.9,6.05195218]
[1680545885015,0.95861412,1799.2,1798.9,5.77402218]
[1680545886172,17.0195,1799.4,1798.9,5.77402218]
[1680545886173,18.2445,1799.4,1798.9,5.77402218]
[1680545886465,0.95861412,1799.0,1798.9,5.77402218]
[1680545886621,0.95861412,1799.0,1798.9,3.008]
[1680545886828,1.23654412,1799.0,1798.9,0.006]
[1680545887082,0.95861412,1798.8,1798.7,0.106]
[1680545887281,0.95512725,1798.8,1798.7,0.1]
[1680545888548,0.95512725,1798.8,1798.7,3.14399218]
[1680545888749,10.9805,1799.0,1798.7,2.88873383]
[1680545888750,0.006,1798.9,1798.7,2.88873383]
[1680545888967,11.93562725,1799.0,1798.8,2.76602218]
[1680545889158,0.96312725,1799.0,1798.8,3.36064256]
[1680545889330,0.95512725,1799.0,1798.8,3.36064256]
[1680545889643,6.72472725,1799.1,1798.9,3.0]
[1680545889842,6.72472725,1799.1,1798.9,6.68002644]
[1680545889843,0.96312725,1799.1,1798.9,6.68002644]
[1680545890155,17.3665,1799.4,1798.9,6.68202644]
[1680545890322,17.3685,1799.4,1799.1,0.27791]
[1680545890527,18.32362725,1799.4,1799.1,0.27791]
[1680545891038,18.32362725,1799.4,1799.1,3.27791]
[1680545891255,18.32362725,1799.4,1799.1,4.49371822]
[1680545891564,0.96312725,1799.4,1799.2,2.76602218]
[1680545891732,0.95512725,1799.4,1799.2,2.76602218]
[1680545892868,0.95512725,1799.4,1799.1,3.66197822]
[1680545893025,0.95512725,1799.4,1799.0,3.27992]
[1680545893223,0.95512725,1799.4,1799.0,3.83378]
[1680545893427,0.95512725,1799.4,1799.0,4.41257598]
[1680545893771,0.95512725,1799.4,1799.0,3.0]
[1680545893931,0.95512725,1799.4,1798.9,5.72979024]
[1680545894134,1.07842597,1799.4,1799.0,0.27792]
[1680545894333,1.07842597,1799.4,1799.0,3.0]
[1680545894773,1.07842597,1799.4,1798.9,4.49480024]
[1680545895071,0.95512725,1799.2,1798.9,4.21486024]
[1680545896062,0.95512725,1799.2,1799.0,0.42148602]
[1680545896367,5.4988,1799.4,1799.0,1.808202]
[1680545896368,6.45392725,1799.4,1799.0,1.808202]
[1680545896571,0.008,1799.4,1799.2,6.43379598]
[1680545896781,0.96112725,1799.6,1799.3,12.45467218]
[1680545896960,0.96112725,1799.6,1799.4,0.79783251]
[1680545897274,0.96112725,1799.6,1799.5,2.76602218]
[1680545897657,0.96112725,1799.6,1799.5,5.76602218]
[1680545897831,0.96112725,1799.6,1799.5,5.76802218]
[1680545898167,0.95512725,1799.6,1799.5,0.002]
[1680545898369,0.95512725,1799.6,1799.3,0.006]
[1680545898370,0.95512725,1799.6,1799.3,0.27787]
[1680545898555,0.95512725,1799.4,1799.2,3.60150133]
[1680545898751,0.95512725,1799.4,1799.2,6.36752351]
[1680545898955,0.95512725,1799.4,1799.2,5.79072753]
[1680545899155,0.95512725,1799.4,1799.2,2.76802218]
[1680545899355,0.95512725,1799.4,1799.2,2.76602218]
[1680545899526,0.95512725,1799.2,1799.1,0.002]
[1680545899731,0.95512725,1799.2,1799.1,2.76602218]
[1680545900585,1.23302725,1799.2,1799.1,2.76602218]
[1680545901186,0.006,1799.3,1799.1,3.0426244]
[1680545901187,0.004,1799.3,1799.1,3.0426244]
[1680545901389,0.96112725,1799.4,1799.1,4.47786699]
[1680545901591,0.95512725,1799.4,1799.1,4.47786699]
[1680545901889,0.95512725,1799.4,1799.3,0.27788]
[1680545902188,0.95512725,1799.4,1799.2,2.76602218]
[1680545902189,0.95512725,1799.4,1799.2,3.04390218]